bitfinex-derivatives/quotes_SOLF0:USTF0_20250309
["timestamp","ask_amount","ask_price","bid_price","bid_amount"]
[1741496328392,7.27243261,138.5,138.47,7.27610572]
[1741496328992,0.05063261,138.5,138.47,7.27610572]
[1741496329889,0.05063261,138.5,138.47,0.05310572]
[1741496330094,0.05063261,138.5,138.48,7.2224]
[1741496331990,7.2224,138.49,138.47,0.05310572]
[1741496332588,36.83673261,138.5,138.47,0.05310572]
[1741496333595,29.61493261,138.5,138.47,0.05310572]
[1741496333796,7.222,138.49,138.47,0.05310572]
[1741496334196,36.83663261,138.5,138.47,0.05310572]
[1741496337093,36.83663261,138.5,138.47,7.27610572]
[1741496339595,29.61493261,138.5,138.48,7.2224]
[1741496339994,29.61493261,138.5,138.47,0.05310572]
[1741496340195,29.61493261,138.5,138.47,7.27590572]
[1741496342496,36.83653261,138.5,138.47,0.05310572]
[1741496343000,7.2225,138.48,138.47,0.05310572]
[1741496343201,29.61493261,138.5,138.47,0.05310572]
[1741496343701,36.83673261,138.5,138.47,0.05310572]
[1741496345197,7.222,138.49,138.47,0.05310572]
[1741496346500,29.61493261,138.5,138.47,0.05310572]
[1741496346804,36.83663261,138.5,138.47,0.05310572]
[1741496347004,3.93493261,138.5,138.48,7.2225]
[1741496347204,29.53493261,138.5,138.48,7.2225]
[1741496347403,29.53493261,138.5,138.47,0.05310572]
[1741496347705,36.75653261,138.5,138.47,0.05310572]
[1741496349695,36.75653261,138.5,138.47,7.27600572]
[1741496350306,36.75653261,138.5,138.47,0.05310572]
[1741496352499,32.87223261,138.5,138.47,0.05310572]
[1741496352706,25.65063261,138.5,138.47,7.27600572]
[1741496353309,32.87223261,138.5,138.47,0.05310572]
[1741496353608,25.65063261,138.5,138.47,0.05310572]
[1741496354111,25.65063261,138.5,138.47,7.27580572]
[1741496354811,32.87243261,138.5,138.47,0.05310572]
[1741496355809,25.65063261,138.5,138.47,7.27610572]
[1741496357413,32.87223261,138.5,138.47,7.27610572]
[1741496359022,25.65063261,138.5,138.47,7.27610572]
[1741496359524,25.65063261,138.5,138.47,0.05310572]
[1741496359721,32.87243261,138.5,138.47,0.05310572]
[1741496360725,32.87243261,138.5,138.47,7.27580572]
[1741496364128,32.87243261,138.5,138.47,0.05310572]
[1741496372233,25.65063261,138.5,138.47,0.05310572]
[1741496373331,7.222,138.49,138.47,0.05310572]
[1741496374033,25.65063261,138.5,138.47,0.05310572]
[1741496374227,32.87243261,138.5,138.47,0.05310572]
[1741496376136,25.65063261,138.5,138.47,0.05310572]
[1741496376331,7.2225,138.48,138.44,19.04713079]
[1741496376834,7.2236,138.46,138.43,39.71971823]
[1741496377336,25.5,138.47,138.44,7.2245]
[1741496377534,0.04812564,138.46,138.44,7.2245]
[1741496378533,0.04812564,138.46,138.45,7.2241]
[1741496394451,2.564e-05,138.46,138.45,7.2241]
[1741496400248,25.5,138.52,138.51,7.2209]
[1741496400557,25.5,138.54,138.49,11.82263079]
[1741496400857,25.5,138.54,138.51,7.2206]
[1741496401451,25.55134633,138.54,138.51,7.26874801]
[1741496402158,32.77074633,138.54,138.51,7.26874801]
[1741496402554,25.55134633,138.54,138.51,0.04814801]
[1741496402763,32.77084633,138.54,138.51,0.04814801]
[1741496403354,7.2199,138.53,138.51,0.04814801]
[1741496403556,25.55134633,138.54,138.47,11.82263079]
[1741496403749,11.82263079,138.53,138.47,11.82263079]
[1741496403955,7.221,138.51,138.48,7.2223]
[1741496404258,11.82263079,138.53,138.47,11.82263079]
[1741496404460,19.04273079,138.53,138.49,7.2215]
[1741496404659,0.05170982,138.51,138.49,7.27146525]
[1741496404955,0.05170982,138.51,138.5,7.2215]
[1741496405159,9.82e-06,138.51,138.5,7.2215]
[1741496408357,9.82e-06,138.51,138.49,11.87259604]
[1741496408556,9.82e-06,138.51,138.49,19.09439604]
[1741496411460,9.82e-06,138.51,138.5,7.2215]
[1741496416361,9.82e-06,138.51,138.49,19.09439604]
[1741496417665,9.82e-06,138.51,138.5,7.2215]
[1741496419772,9.82e-06,138.51,138.49,11.87259604]
[1741496420966,7.22100982,138.51,138.49,11.87259604]
[1741496421367,9.82e-06,138.51,138.49,19.09449604]
[1741496423368,9.82e-06,138.51,138.49,0.04996525]
[1741496423569,7.2215,138.5,138.49,0.04996525]
[1741496423769,32.7215,138.5,138.49,0.04996525]
[1741496427478,7.222,138.49,138.47,11.82263079]
[1741496428471,7.222,138.49,138.47,11.87697671]
[1741496428676,27.5168,138.5,138.47,11.87697671]
[1741496428976,34.7385,138.5,138.47,19.09977671]
[1741496430483,27.5168,138.5,138.47,11.87697671]
[1741496430781,27.5168,138.5,138.48,7.2225]
[1741496431084,2.0168,138.5,138.47,11.87697671]
[1741496432583,9.2386,138.5,138.47,19.09977671]
[1741496434287,9.2386,138.5,138.47,11.87697671]
[1741496435687,2.0168,138.5,138.47,0.05434592]
[1741496435887,25.5,138.49,138.47,0.05434592]
[1741496436988,25.5,138.49,138.47,7.27704592]
[1741496440990,25.5,138.49,138.47,0.05434592]
[1741496441192,25.5,138.49,138.48,7.2225]
[1741496445696,2.0168,138.5,138.48,7.2225]
[1741496445889,2.0168,138.5,138.49,7.222]
[1741496447797,2.0168,138.5,138.47,11.87697671]
[1741496447995,2.0168,138.5,138.48,7.2224]
[1741496448598,2.0168,138.5,138.49,7.222]
[1741496448897,2.0168,138.5,138.47,11.87697671]
[1741496450193,2.0168,138.5,138.48,7.2225]
[1741496451996,2.0168,138.5,138.47,19.09967671]
[1741496452501,7.2221,138.49,138.47,0.05434592]
[1741496452892,25.5,138.48,138.47,0.05434592]
[1741496453092,25.5,138.48,138.43,127.70871518]
[1741496453497,32.7229,138.48,138.44,7.2244]
[1741496454202,0.05402767,138.47,138.45,0.05080861]
[1741496454400,7.27712767,138.47,138.45,0.05080861]
[1741496457306,0.05402767,138.47,138.45,0.05080861]
[1741496457507,7.2236,138.46,138.45,0.05080861]
[1741496461111,9.1761,138.46,138.45,0.05080861]
[1741496462009,7.2244,138.45,138.42,7.2255]
[1741496462209,25.5,138.45,138.41,11.82263079]
[1741496463108,32.7244,138.45,138.42,0.04634679]
[1741496463311,25.5,138.45,138.42,0.04634679]
[1741496463911,7.2246,138.44,138.42,0.04634679]
[1741496466710,39.33613079,138.45,138.38,19.05013079]
[1741496466915,11.82263079,138.43,138.38,7.2275]
[1741496467116,25.5,138.42,138.38,7.2275]
[1741496467314,32.7259,138.42,138.39,7.2271]
[1741496468119,32.77289513,138.42,138.39,7.28090155]
[1741496468418,25.54699513,138.42,138.39,7.28090155]
[1741496471620,32.77269513,138.42,138.39,7.28090155]
[1741496474821,25.54699513,138.42,138.39,7.28090155]
[1741496476227,25.54699513,138.42,138.4,7.2266]
[1741496476724,25.54699513,138.42,138.39,0.05380155]
[1741496477328,25.54699513,138.42,138.4,7.2267]
[1741496483337,25.54699513,138.42,138.41,7.2262]
[1741496484441,25.54699513,138.42,138.4,7.2266]
[1741496486946,25.54699513,138.42,138.31,248.73154823]
[1741496486947,11.82263079,138.41,138.31,39.71971823]
[1741496487142,11.82263079,138.37,138.31,39.71971823]
[1741496487343,25.5,138.36,138.31,39.71971823]
[1741496488242,0.05115424,138.35,138.32,0.04775979]
[1741496490341,7.2298,138.34,138.32,0.04775979]
[1741496490545,25.52,138.33,138.32,0.04775979]
[1741496490943,32.7503,138.33,138.32,0.04775979]
[1741496491947,25.52,138.33,138.32,0.04775979]
[1741496493350,32.7503,138.33,138.32,0.04775979]
[1741496495844,25.52,138.33,138.32,0.04775979]
[1741496498051,32.7503,138.33,138.32,0.04775979]
[1741496500647,25.52,138.33,138.32,0.04775979]
[1741496510761,44.57293079,138.33,138.28,11.82263079]
[1741496510961,37.34263079,138.33,138.28,11.82263079]
[1741496511364,7.231,138.32,138.28,7.2325]
[1741496511563,37.34263079,138.33,138.26,12.16413079]
[1741496511960,0.05388999,138.31,138.28,7.2840073]
[1741496512665,0.05388999,138.31,138.29,7.2323]
[1741496512863,0.05388999,138.31,138.28,0.0516073]
[1741496513661,0.05388999,138.31,138.29,7.2324]
[1741496514760,0.05388999,138.31,138.3,7.2319]
[1741496520874,0.05388999,138.31,138.29,7.2322]
[1741496521466,0.05388999,138.31,138.3,7.2319]
[1741496523374,0.05388999,138.31,138.28,11.87423809]
[1741496523566,0.05388999,138.31,138.29,7.2322]
[1741496526174,0.05388999,138.31,138.3,7.2319]
[1741496526376,0.05388999,138.31,138.3,19.05453079]
[1741496527367,0.05388999,138.31,138.28,0.0516073]
[1741496527368,0.05388999,138.31,138.28,11.87423809]
[1741496527976,0.05388999,138.31,138.3,7.2319]
[1741496528177,0.05388999,138.31,138.3,19.05453079]
[1741496529377,0.0061302,138.31,138.3,19.05453079]
[1741496529779,25.52,138.35,138.3,11.82263079]
[1741496529978,25.52,138.35,138.33,7.2299]
[1741496530674,25.52,138.35,138.3,11.82263079]
[1741496530675,25.52,138.35,138.34,7.2298]
[1741496531084,25.52,138.35,138.33,0.0469399]
[1741496531982,32.7496,138.35,138.33,0.0469399]
[1741496532581,25.52,138.35,138.33,0.0469399]
[1741496532783,7.2298,138.34,138.33,0.0469399]
[1741496532977,19.05243079,138.34,138.33,0.0469399]
[1741496533779,11.82263079,138.34,138.33,0.0469399]
[1741496534377,25.52,138.35,138.33,0.0469399]
[1741496534684,11.87363555,138.36,138.33,0.0469399]
[1741496534685,11.87363555,138.36,138.33,7.2769399]
[1741496534885,25.52,138.35,138.33,7.2769399]
[1741496537086,25.52,138.35,138.33,0.0469399]
[1741496537287,25.52,138.35,138.34,7.2298]
[1741496540385,0.05100476,138.36,138.33,0.0469399]
[1741496540586,0.05100476,138.36,138.35,7.2293]
[1741496541382,37.34263079,138.42,138.34,11.82263079]
[1741496541591,25.52,138.43,138.38,11.82263079]
[1741496541787,37.34263079,138.44,138.38,11.82263079]
[1741496541989,11.82263079,138.44,138.42,7.2256]
[1741496542184,11.82263079,138.44,138.38,11.82263079]
[1741496542489,25.52,138.45,138.44,7.2246]
[1741496542787,67.5310726,138.46,138.42,11.82263079]
[1741496542989,67.58483267,138.46,138.42,11.82263079]
[1741496543191,30.24220188,138.46,138.45,7.2241]
[1741496543980,0.05376007,138.46,138.45,7.2241]
[1741496544182,0.05376007,138.46,138.44,19.04713079]
[1741496544585,0.05376007,138.46,138.43,0.05453608]
[1741496544787,11.82263079,138.45,138.43,0.05453608]
[1741496546895,0.05376007,138.46,138.43,0.05453608]
[1741496547297,0.05376007,138.46,138.43,7.27963608]
[1741496547595,0.05376007,138.46,138.43,0.05453608]
[1741496548399,0.05376007,138.46,138.44,7.2246]
[1741496548990,0.05376007,138.46,138.43,0.05453608]
[1741496550498,7.27736007,138.46,138.43,0.05453608]
[1741496550698,0.05376007,138.46,138.43,0.05453608]
[1741496551794,0.05376007,138.46,138.44,11.82263079]
[1741496551999,0.05376007,138.46,138.44,37.32263079]
[1741496553088,0.05376007,138.46,138.45,7.2241]
[1741496553296,6.007e-05,138.46,138.45,7.2241]
[1741496553495,11.82263079,138.53,138.44,37.32263079]
[1741496553695,11.82263079,138.53,138.5,7.2215]
[1741496554104,19.04263079,138.53,138.48,11.82263079]
[1741496554701,0.04955949,138.52,138.49,0.04921036]
[1741496555201,0.04955949,138.52,138.49,7.27111036]
[1741496556704,7.27005949,138.52,138.49,0.04921036]
[1741496556999,0.04955949,138.52,138.49,0.04921036]
[1741496558003,7.2213,138.51,138.49,0.04921036]
[1741496558601,7.2215,138.5,138.49,0.04921036]
[1741496559603,0.04955949,138.52,138.49,0.04921036]
[1741496559802,7.2211,138.51,138.49,0.04921036]
[1741496560308,7.2215,138.5,138.49,0.04921036]
[1741496563611,32.7211,138.51,138.49,0.04921036]
[1741496565311,25.5,138.51,138.49,0.04921036]
[1741496567511,32.721,138.51,138.49,0.04921036]
[1741496574219,7.2215,138.5,138.49,0.04921036]
[1741496574518,39.38793079,138.51,138.45,11.82263079]
[1741496574719,27.5653,138.51,138.47,11.82263079]
[1741496575415,0.05220518,138.5,138.48,7.26910121]
[1741496576218,0.05220518,138.5,138.48,0.04690121]
[1741496577220,0.05220518,138.5,138.48,7.26900121]
[1741496577523,0.05220518,138.5,138.48,0.04690121]
[1741496577819,0.05220518,138.5,138.48,7.26930121]
[1741496578321,0.05220518,138.5,138.49,7.222]
[1741496580819,0.05220518,138.5,138.49,19.04463079]
[1741496581823,0.05220518,138.5,138.49,7.222]
[1741496584826,0.05220518,138.5,138.48,0.04690121]
[1741496585927,37.35483597,138.5,138.43,11.82263079]
[1741496586326,11.82263079,138.48,138.44,7.2245]
[1741496586527,25.48,138.47,138.44,7.2245]
[1741496587129,25.53035806,138.47,138.44,7.27045296]
[1741496587324,0.05035806,138.47,138.46,7.2236]
[1741496587524,5.806e-05,138.47,138.46,7.2236]
[1741496589826,11.82263079,138.55,138.53,7.2199]
[1741496591038,11.87468465,138.55,138.53,7.2672224]
[1741496592934,11.87468465,138.55,138.54,7.2194]
[1741496593530,37.35468465,138.55,138.54,7.2194]
[1741496594032,0.05205386,138.55,138.54,7.2194]
[1741496595634,0.05205386,138.55,138.54,19.04203079]
[1741496595835,5.386e-05,138.55,138.54,44.52203079]
[1741496598042,3.8824,138.62,138.54,37.30263079]
[1741496598240,3.8824,138.62,138.58,11.82263079]
[1741496599143,0.04894673,138.61,138.59,7.26993173]
[1741496601547,0.04894673,138.61,138.59,0.05343173]
[1741496602143,0.04894673,138.61,138.59,7.27003173]
[1741496602446,0.04894673,138.61,138.59,0.05343173]
[1741496603648,0.04894673,138.61,138.6,7.2163]
[1741496603950,0.04894673,138.61,138.6,19.03893079]
[1741496604144,0.04894673,138.61,138.6,44.53893079]
[1741496604551,0.04894673,138.61,138.6,7.2163]
[1741496607161,25.1,138.64,138.6,25.52]
[1741496607353,17.6382,138.64,138.63,19.03733079]
[1741496617962,1.0082,138.64,138.63,19.03733079]
[1741496619663,6.81896022,138.65,138.63,37.36263079]
[1741496619664,6.022e-05,138.65,138.63,37.36263079]
[1741496619967,6.022e-05,138.65,138.64,7.2142]
[1741496632770,25.60006022,138.65,138.62,0.0526506]
[1741496632967,25.60006022,138.65,138.61,11.82263079]
[1741496633168,7.2142,138.64,138.59,11.82263079]
[1741496633369,7.2142,138.64,138.6,7.2158]
[1741496634176,7.2142,138.64,138.61,0.05230465]
[1741496635372,7.2147,138.63,138.61,0.05230465]
[1741496635572,9.2265,138.63,138.61,0.05230465]
[1741496635774,2.0118,138.63,138.61,0.05230465]
[1741496636374,7.2152,138.62,138.59,11.82263079]
[1741496636574,32.8352,138.62,138.59,11.82263079]
[1741496636874,7.2157,138.61,138.59,11.82263079]
[1741496637576,7.26167085,138.61,138.59,11.86956044]
[1741496638281,9.24947085,138.61,138.59,11.86956044]
[1741496640483,7.2173,138.58,138.55,11.82263079]
[1741496640783,25.58,138.58,138.55,11.82263079]
[1741496640980,32.7975,138.58,138.55,11.82263079]
[1741496641378,25.58,138.58,138.55,11.82263079]
[1741496641686,25.62575556,138.58,138.55,11.87704956]
[1741496642285,25.62575556,138.58,138.55,19.09544956]
[1741496642686,25.62575556,138.58,138.55,11.87704956]
[1741496642891,25.62575556,138.58,138.56,7.2183]
[1741496643282,25.62575556,138.58,138.57,7.2178]
[1741496644485,0.04575556,138.58,138.57,19.04043079]
[1741496644684,5.556e-05,138.58,138.57,19.04043079]
[1741496648186,15.78,138.6,138.57,11.82263079]
[1741496648383,15.78,138.6,138.59,19.03943079]
[1741496650581,15.78,138.6,138.55,7.2187]
[1741496650786,15.78,138.6,138.54,11.82263079]
[1741496650787,29.67053079,138.6,138.54,11.82263079]
[1741496650986,7.2169,138.59,138.54,11.82263079]
[1741496651186,25.66,138.58,138.54,11.82263079]
[1741496651386,25.66,138.58,138.55,7.2187]
[1741496651881,25.71481784,138.58,138.55,0.04937565]
[1741496652086,25.71481784,138.58,138.57,7.2178]
[1741496653094,25.71481784,138.58,138.56,11.82263079]
[1741496653293,25.71481784,138.58,138.56,19.04083079]
[1741496653482,25.71481784,138.58,138.55,0.04937565]
[1741496653887,37.53744863,138.58,138.5,263.7]
[1741496654088,7.2183,138.56,138.52,19.04303079]
[1741496654489,1.9755,138.57,138.52,11.82263079]
[1741496654689,9.1935,138.57,138.53,7.2196]
[1741496654891,1.9755,138.57,138.54,11.82263079]
[1741496655196,2.02516923,138.57,138.56,7.2183]
[1741496656992,2.02516923,138.57,138.55,7.2186]
[1741496657294,2.02516923,138.57,138.54,0.05009068]
[1741496657796,2.02516923,138.57,138.54,7.26919068]
[1741496657993,2.02516923,138.57,138.54,0.05009068]
[1741496658388,2.02516923,138.57,138.54,7.26919068]
[1741496659295,3.89946923,138.57,138.54,7.26919068]
[1741496659794,11.11766923,138.57,138.54,0.05009068]
[1741496660393,3.89946923,138.57,138.48,18.41154788]
[1741496660694,3.8498,138.57,138.48,18.41154788]
[1741496660895,7.2197,138.54,138.5,7.2211]
[1741496661095,25.8,138.54,138.5,7.2211]
[1741496661595,0.04867707,138.53,138.51,0.0468183]
[1741496661790,1.22867707,138.53,138.51,0.0468183]
[1741496664096,1.22867707,138.53,138.51,7.2673183]
[1741496664496,1.22867707,138.53,138.51,0.0468183]
[1741496664698,1.22867707,138.53,138.52,7.2204]
[1741496670605,1.22867707,138.53,138.51,7.2676183]
[1741496670805,1.22867707,138.53,138.51,0.0468183]
[1741496672099,1.22867707,138.53,138.51,7.2674183]
[1741496675500,1.22867707,138.53,138.51,0.0468183]
[1741496676004,1.22867707,138.53,138.51,7.2674183]
[1741496676505,1.22867707,138.53,138.51,0.0468183]
[1741496677106,1.22867707,138.53,138.52,7.2204]
[1741496678707,0.04867707,138.53,138.52,7.2204]
[1741496685013,7.707e-05,138.53,138.52,19.0125519]
[1741496700813,7.707e-05,138.53,138.51,0.0468183]
[1741496702113,4.04847707,138.53,138.51,0.0468183]
[1741496702523,32.9204,138.52,138.51,0.0468183]
[1741496703126,25.7,138.52,138.51,0.0468183]
[1741496704323,7.707e-05,138.53,138.51,0.0468183]
[1741496704529,7.707e-05,138.53,138.52,11.7921519]
[1741496704729,7.707e-05,138.53,138.52,19.0125519]
[1741496708031,7.707e-05,138.53,138.52,44.7125519]
[1741496715742,7.707e-05,138.55,138.52,37.4921519]
[1741496716041,17.7406519,138.62,138.54,11.7921519]
[1741496716239,25.64,138.61,138.56,11.7921519]
[1741496716841,0.04725045,138.6,138.58,7.2169]
[1741496717036,0.04725045,138.6,138.57,0.04605263]
[1741496718545,0.04725045,138.6,138.59,7.2168]
[1741496722454,0.04725045,138.6,138.58,19.0092519]
[1741496722654,0.04725045,138.6,138.58,11.7921519]
[1741496722851,0.04725045,138.6,138.57,0.04605263]
[1741496723055,37.43940235,138.6,138.54,11.7921519]
[1741496723350,37.3921519,138.6,138.54,11.7921519]
[1741496723554,7.2176,138.58,138.54,19.0111519]
[1741496724049,7.2176,138.58,138.55,0.05192794]
[1741496724251,7.2183,138.56,138.55,0.05192794]
[1741496724452,27.69670212,138.57,138.52,11.7921519]
[1741496724652,11.7921519,138.56,138.52,11.7921519]
[1741496725556,7.2192,138.55,138.53,0.04925472]
[1741496728152,9.0882,138.55,138.53,0.04925472]
[1741496728648,7.2194,138.54,138.53,0.04925472]
[1741496729153,7.2194,138.54,138.5,19.0135519]
[1741496729651,9.184,138.54,138.5,19.0135519]
[1741496730257,0.0488139,138.53,138.51,0.04952791]
[1741496732959,0.0488139,138.53,138.51,7.27032791]
[1741496733160,0.0488139,138.53,138.51,0.04952791]
[1741496733360,0.0488139,138.53,138.52,19.0125519]
[1741496735564,0.0488139,138.53,138.51,19.06247981]
[1741496739761,0.0488139,138.53,138.52,7.2204]
[1741496742762,0.0488139,138.53,138.51,11.84167981]
[1741496742967,0.0488139,138.53,138.51,19.06237981]
[1741496743470,0.0488139,138.53,138.51,11.84167981]
[1741496743771,0.0488139,138.53,138.51,19.06247981]
[1741496744372,0.0488139,138.53,138.52,7.2204]
[1741496748369,0.0488139,138.53,138.51,19.06247981]
[1741496750874,0.0488139,138.53,138.52,7.2204]
[1741496756881,0.0488139,138.53,138.51,11.84167981]
[1741496757080,0.0488139,138.53,138.51,19.06227981]
[1741496759477,0.0488139,138.53,138.52,7.2204]
[1741496765392,0.0488139,138.53,138.51,19.06237981]
[1741496765889,0.0488139,138.53,138.51,0.04952791]
[1741496766388,7.2690139,138.53,138.51,0.04952791]
[1741496766585,0.0488139,138.53,138.51,0.04952791]
[1741496767289,7.2204,138.52,138.51,0.04952791]
[1741496767595,0.0488139,138.53,138.51,0.04952791]
[1741496767888,7.2689139,138.53,138.51,0.04952791]
[1741496768090,0.0488139,138.53,138.51,0.04952791]
[1741496768288,7.2204,138.52,138.51,0.04952791]
[1741496768485,0.0488139,138.53,138.51,0.04952791]
[1741496768886,7.2689139,138.53,138.51,0.04952791]
[1741496769388,0.0488139,138.53,138.51,0.04952791]
[1741496771490,7.2204,138.52,138.51,0.04952791]
[1741496773689,0.0488139,138.53,138.51,0.04952791]
[1741496773894,7.2689139,138.53,138.51,0.04952791]
[1741496775296,7.2204,138.52,138.51,0.04952791]
[1741496778299,7.2691139,138.53,138.51,0.04952791]
[1741496780501,0.0488139,138.53,138.51,7.27042791]
[1741496780698,0.0488139,138.53,138.51,0.04952791]
[1741496781203,7.2204,138.52,138.51,0.04952791]
[1741496784295,0.0488139,138.53,138.51,0.04952791]
[1741496784501,7.2689139,138.53,138.51,0.04952791]
[1741496788903,0.0488139,138.53,138.48,11.7921519]
[1741496789108,7.2204,138.52,138.49,7.2218]
[1741496790002,7.2204,138.52,138.49,7.27718096]
[1741496790212,25.5,138.51,138.49,0.05538096]
[1741496792109,25.5,138.51,138.5,7.2215]
[1741496803314,25.5,138.51,138.49,0.05538096]
[1741496804517,7.2215,138.5,138.49,0.05538096]
[1741496811428,11.7921519,138.5,138.45,7.2239]
[1741496811631,7.2226,138.48,138.45,7.2239]
[1741496811927,13.7330519,138.5,138.45,7.2239]
[1741496812131,7.2224,138.49,138.45,7.2239]
[1741496812728,0.05362837,138.48,138.46,0.05021165]
[1741496815232,0.05362837,138.48,138.46,7.27371165]
[1741496816331,7.223,138.47,138.46,0.05021165]
[1741496824138,11.84578027,138.48,138.46,0.05021165]
[1741496824339,37.34578027,138.48,138.46,0.05021165]
[1741496824838,7.223,138.47,138.46,0.05021165]
[1741496825235,37.34578027,138.48,138.46,0.05021165]
[1741496825637,44.56848027,138.48,138.46,0.05021165]
[1741496825836,37.34578027,138.48,138.46,0.05021165]
[1741496827135,37.34578027,138.48,138.46,7.27371165]
[1741496827340,37.34578027,138.48,138.46,0.05021165]
[1741496828441,7.223,138.47,138.46,0.05021165]
[1741496832442,37.34578027,138.48,138.46,0.05021165]
[1741496832943,44.56838027,138.48,138.46,0.05021165]
[1741496833538,37.34578027,138.48,138.46,0.05021165]
[1741496833741,0.05362837,138.48,138.47,7.223]
[1741496833940,0.05362837,138.48,138.47,19.0151519]
[1741496837953,3.8396,138.55,138.47,37.2921519]
[1741496838136,37.2921519,138.56,138.51,11.7921519]
[1741496838542,37.2921519,138.56,138.53,7.2196]
[1741496838742,37.2921519,138.56,138.51,11.7921519]
[1741496839046,0.05224239,138.55,138.52,0.04933128]
[1741496839647,12.93224239,138.55,138.52,7.26973128]
[1741496840046,11.7921519,138.54,138.52,0.04933128]
[1741496840247,7.2199,138.53,138.52,0.04933128]
[1741496840448,27.395,138.53,138.47,37.2921519]
[1741496840647,11.7921519,138.52,138.47,11.7921519]
[1741496841149,23.0021519,138.52,138.47,11.7921519]
[1741496841643,0.04763043,138.51,138.48,0.0532541]
[1741496841941,0.04763043,138.51,138.49,11.7921519]
[1741496843250,0.04763043,138.51,138.5,7.2215]
[1741496861661,0.04763043,138.51,138.49,11.7921519]
[1741496861862,0.04763043,138.51,138.48,0.0532541]
[1741496862265,0.04763043,138.51,138.49,11.7921519]
[1741496862472,0.04763043,138.51,138.5,7.2215]
[1741496876378,0.04763043,138.51,138.49,7.2218]
[1741496876580,0.04763043,138.51,138.48,0.0532541]
[1741496876877,7.222,138.49,138.48,0.0532541]
[1741496877077,39.2054519,138.5,138.45,39.71971823]
[1741496877477,11.7921519,138.48,138.45,39.71971823]
[1741496878178,11.84023992,138.48,138.45,39.74995081]
[1741496878383,7.2235,138.47,138.45,39.74995081]
[1741496878878,7.2235,138.47,138.45,0.03023258]
[1741496879281,7.223,138.47,138.45,0.03023258]
[1741496880285,23.05023992,138.48,138.45,0.03023258]
[1741496880485,7.2236,138.46,138.45,0.03023258]
[1741496881075,11.7921519,138.46,138.42,39.71971823]
[1741496881281,9.2907,138.45,138.42,39.71971823]
[1741496881788,9.2907,138.45,138.41,19.0181519]
[1741496882184,11.2692,138.45,138.41,19.0181519]
[1741496882386,0.04965191,138.44,138.41,19.0181519]
[1741496883087,0.04965191,138.44,138.4,13.11932785]
[1741496883288,0.04965191,138.44,138.42,7.2256]
[1741496883588,0.04965191,138.44,138.42,13.11932785]
[1741496883779,0.04965191,138.44,138.43,7.2251]
[1741496883984,0.04965191,138.44,138.42,13.11932785]
[1741496884486,0.04965191,138.44,138.42,20.34462785]
[1741496885485,0.04965191,138.44,138.43,7.2251]
[1741496890387,5.191e-05,138.44,138.43,7.2251]
[1741496900890,5.191e-05,138.44,138.43,32.7051]
[1741496904102,10.48,138.46,138.45,7.2241]
[1741496904304,10.48,138.46,138.45,20.34342785]
[1741496905802,0.04931397,138.47,138.45,13.11932785]
[1741496906102,0.04931397,138.47,138.46,7.2236]
[1741496909708,4.5746,138.51,138.46,25.48]
[1741496909907,0.74,138.51,138.5,20.34082785]
[1741496912509,0.74,138.51,138.5,20.32192352]
[1741496913012,0.74,138.51,138.5,13.10042352]
[1741496913603,0.74,138.51,138.5,20.32192352]
[1741496913899,0.74,138.51,138.5,13.10042352]
[1741496914713,26.22,138.51,138.49,0.04902312]
[1741496914903,28.266,138.51,138.46,13.10898278]
[1741496915303,7.2218,138.5,138.46,20.33228278]
[1741496916011,0.04617451,138.49,138.47,7.2697316]
[1741496919614,0.04617451,138.49,138.48,20.33148278]
[1741496940531,0.04617451,138.49,138.48,13.10898278]
[1741496941825,0.04617451,138.49,138.48,20.33148278]
[1741496945041,2.00117451,138.49,138.48,20.33148278]
[1741496945236,2.00117451,138.49,138.42,248.25684823]
[1741496945432,1.914,138.48,138.43,13.10898278]
[1741496945836,27.394,138.48,138.43,13.10898278]
[1741496946443,7.2236,138.46,138.43,20.33378278]
[1741496946637,13.10898278,138.45,138.42,9.95684823]
[1741496946941,7.2254,138.43,138.4,23.06583101]
[1741496947137,27.3433,138.44,138.4,23.06583101]
[1741496947338,0.04812133,138.43,138.4,23.06583101]
[1741496947934,0.04812133,138.43,138.4,30.29223101]
[1741496950343,7.27322133,138.43,138.4,23.06583101]
[1741496951044,7.2257,138.42,138.4,9.95684823]
[1741496951436,7.2257,138.42,138.38,13.10898278]
[1741496952143,7.2257,138.42,138.38,20.33638278]
[1741496952342,22.39580411,138.43,138.38,13.10898278]
[1741496952737,15.17050411,138.43,138.38,13.10898278]
[1741496953143,7.226,138.42,138.38,13.10898278]
[1741496953341,15.17050411,138.43,138.38,20.33638278]
[1741496954041,7.2258,138.42,138.38,20.33638278]
[1741496956339,15.17050411,138.43,138.38,13.10898278]